Cogmind - Beta 13 @@@ ROGUE MODE // 2024.04.07 @ 18:40:04 Player: Bort Result: Destroyed by G-47 Trooper with Particle Gun Performance ------------- Evolutions (1) 500 Regions Visited (2) 400 Robots Destroyed (13) 65 Value Destroyed (434) 434 Prototype IDs (0) 0 Alien Tech Used (0) 0 Bonus (0) 0 TOTAL SCORE: 1399 Bonus ------- None Cogmind --------- Core Integrity 0/400 Matter 158/300 Energy 240/240 System Corruption 0% Temperature Cool (9) Movement Walking (260) Ox2 Location -9/Materials Parts ------- > --- POWER (1) -------- Nuclear Core > --- PROPULSION (2) --- Aluminum Leg > --- UTILITY (3) ------ Large Storage Unit > --- WEAPON (3) ------- (None) > --- INVENTORY (15) --- Heat Sink Peak State ------------ > --- POWER ------------ Nuclear Core > --- PROPULSION ------- Aluminum Leg Aluminum Leg > --- UTILITY ---------- Large Storage Unit Medium Armor Plating > --- WEAPON ----------- Autogun Autogun > --- INVENTORY -------- Ion Engine Ion Engine Nuclear Core Heat Sink [Rating: 12] Favorites ----------- Power Nuclear Core Engine Ion Engine Power Core Nuclear Core Propulsion Aluminum Leg Leg Aluminum Leg Wheel Wheel Utility Medium Armor Plating Device Heat Sink Storage Large Storage Unit Protection Medium Armor Plating Weapon Autogun Energy Gun EM Pulse Gun Energy Cannon Beam Cannon Ballistic Gun Autogun Build | -11 -10 -9 ------- Run | Yrd Mat Mat Slots Evolved 2 | . . 2 Power . | . . . Propulsion . | . . . Utility 1 | . . 1 Weapon 1 | . . 1 Parts Attached 23 | 7 13 3 Power 5 | 1 2 2 Engine 3 | 1 2 . Core 2 | . . 2 Reactor . | . . . Propulsion 7 | 4 2 1 Treads . | . . . Leg 5 | 2 2 1 Wheel 2 | 2 . . Hover . | . . . Flight . | . . . Utility 5 | . 5 . Device 1 | . 1 . Storage 1 | . 1 . Processor . | . . . Hackware . | . . . Protection 3 | . 3 . Artifact . | . . . Weapon 6 | 2 4 . Energy Gun 1 | 1 . . Energy Cannon 2 | . 2 . Ballistic Gun 3 | 1 2 . Ballistic Cannon . | . . . Launcher . | . . . Special Weapon . | . . . Impact Weapon . | . . . Slashing Weapon . | . . . Piercing Weapon . | . . . Special Melee Weapon . | . . . Unidentified Prototypes . | . . . Parts Lost 9 | . 3 6 Power 2 | . 1 1 Propulsion 3 | . 1 2 Utility 1 | . . 1 Weapon 3 | . 1 2 Highest Loss Streak 6 | . 2 6 To Critical Strikes . | . . . Average Slot Usage (%) 75 | . 92 61 Engine 5 | . 11 . Core 5 | . . 10 Leg 16 | . 17 15 Wheel 4 | . 9 . Device 2 | . 5 . Storage 7 | . 3 11 Protection 11 | . 15 7 Energy Cannon 4 | . 9 . Ballistic Gun 17 | . 17 16 Naked Turns . | . . . Heaviest Build 40 | 7 38 40 Greatest Support 20 | 20 20 20 Greatest Overweight (x) 12 | . 1 12 Average Overweight (x) . | . . 1 Largest Inventory Capacity 15 | 5 15 15 Average Capacity 11 | 5 7 15 Most Carried 5 | 5 3 4 Average Carried 1 | 1 . 1 Final Capacity 15 | 5 15 15 Final Carried 2 | . 2 1 Class Distribution -------------------- 85% | Mutant 14% | Scavenger-Mutant Dominant Class ---------------- Mutant | -10/Materials Mutant | -9/Materials Resources | -11 -10 -9 ----------- Run | Yrd Mat Mat Matter Collected 537 | 264 223 50 Remotely . | . . . Salvage Created 544 | 45 347 152 Parts 28 | 3 22 3 Haulers Intercepted 1 | . 1 . Recyclers Shooed . | . . . Parts Field Recycled . | . . . Retrieved Matter . | . . . Parts Self-Destructed . | . . . Prevented . | . . . Kills | -11 -10 -9 ------- Run | Yrd Mat Mat Combat Hostiles Destroyed 10 | 1 6 3 Guns 7 | 1 3 3 Cannons 3 | . 3 . Classes Destroyed 5 | 1 2 2 Hauler 1 | . 1 . Watcher 2 | . 2 . Grunt 7 | 1 6 . Brawler 1 | . . 1 Sentry 2 | . . 2 Best Kill Streak 4 | 1 4 1 Combat Bots Only 2 | 1 2 1 Max Kills in Single Turn 2 | 1 2 1 Gunslinging . | . . . Exploded . | . . . Melee . | . . . Uniques/NPCs Destroyed . | . . . Combat | -11 -10 -9 -------- Run | Yrd Mat Mat Hostile Shots Fired 159 | 6 33 120 Missed 38 | 1 7 30 Damage Taken 1659 | 54 393 1212 Core 513 | . 100 413 Absorbed by Shields . | . . . Core Remaining (%) 80 | 100 60 . Volleys Fired 62 | 4 28 30 Largest 2 | 2 2 2 Hottest 120 | 60 120 46 Shots Fired 107 | 8 56 43 Gun 84 | 8 33 43 Cannon 23 | . 23 . Launcher . | . . . Special . | . . . Kinetic 77 | 4 30 43 Thermal 23 | . 23 . Explosive . | . . . Electromagnetic 7 | 4 3 . Robot Hit Streak 8 | 3 7 8 Robot Miss Streak 5 | 1 5 2 Penetration Max . | . . . Secondary Targets 1 | . 1 . Max Gunslinging Chain 1 | . 1 . Shots Hit Robots 65 | 5 27 33 Core Hits 21 | 2 12 7 Critical Kills . | . . . Critical Parts Destroyed . | . . . Critical Strikes . | . . . Melee Attacks . | . . . Impact . | . . . Slashing . | . . . Piercing . | . . . Sneak Attacks . | . . . Combat Hostiles . | . . . Follow-up Attacks . | . . . Damage Inflicted 1061 | 73 515 473 Guns 827 | 73 281 473 Cannons 227 | . 227 . Explosions . | . . . Melee . | . . . Ramming 7 | . 7 . Kinetic 764 | 36 255 473 Thermal 227 | . 227 . Explosive . | . . . Electromagnetic 63 | 37 26 . Impact . | . . . Slashing . | . . . Piercing . | . . . Highest Corruption . | . . . Average Corruption . | . . . Corruption Purged . | . . . Corruption Blocked . | . . . Overload Shots . | . . . Overflow Damage . | . . . Projectiles . | . . . Explosions . | . . . Melee . | . . . Knockbacks . | . . . Impact . | . . . Kinetic . | . . . Secondary . | . . . Self-Inflicted Damage . | . . . Shots . | . . . Rammed . | . . . Targets Rammed 2 | . 2 . Kicked 2 | . 2 . Crushed . | . . . Highest Temperature 608 | 18 608 92 Average Temperature 155 | 10 258 25 Received Heat Transfer 795 | 30 183 582 Effects 11 | . 11 . Interference 2 | . 2 . Damage (major) 7 | . 7 . Damage (core) 2 | . 2 . Siege Activations . | . . . Robots Corrupted . | . . . Combat Hostiles . | . . . Parts Fried . | . . . Impact Corruptions . | . . . Robots Melted . | . . . Combat Hostiles . | . . . Parts Melted 1 | . 1 . Heat Transferred 481 | . 481 . Parts Sabotaged . | . . . Parts Stolen . | . . . Parts Stripped . | . . . Power Chain Reactions . | . . . Alert | -11 -10 -9 ------- Run | Yrd Mat Mat Peak Influence 200 | 20 200 159 Initial 84 | . 13 84 Average 103 | 2 115 111 Maximum Alert Level 1 | . 1 . Low Security (%) 91 | 100 78 100 Level 1 8 | . 21 . Level 2 . | . . . Level 3 . | . . . Level 4 . | . . . Level 5 . | . . . High Security . | . . . Max Security . | . . . Squads Dispatched 1 | . 1 . Investigation . | . . . Extermination . | . . . Reinforcement 1 | . 1 . Assault . | . . . Garrison . | . . . Intercept . | . . . Searches Triggered . | . . . Construction Impeded . | . . . Haulers Reinforced . | . . . Active Scanning Responses . | . . . Cargo Convoy Interrupts . | . . . Stealth | -11 -10 -9 --------- Run | Yrd Mat Mat Distress Signals 1 | . 1 . Communications Jammed . | . . . Distress Signals . | . . . Times Spotted 18 | 1 10 7 Peak Tracking Total 4 | 1 3 4 Tactical Retreats . | . . . Traps | -11 -10 -9 ------- Run | Yrd Mat Mat Traps Triggered . | . . . Indirectly . | . . . Trap Hack Attempts . | . . . Triggered . | . . . Disarmed . | . . . Reprogrammed . | . . . Reused . | . . . Traps Extracted . | . . . Installed . | . . . Triggered . | . . . Machines | -11 -10 -9 ---------- Run | Yrd Mat Mat Machines Disabled 1 | . 1 . Max in Single Turn 1 | . 1 . Machines Repaired . | . . . Machines Dismantled . | . . . Machines Sabotaged . | . . . Overloaded Fab Kills . | . . . Hacking | -11 -10 -9 --------- Run | Yrd Mat Mat Machines Accessed 1 | . . 1 Terminals 1 | . . 1 Fabricators . | . . . Repair Stations . | . . . Recycling Units . | . . . Scanalyzers . | . . . Garrison Access . | . . . Total Hacks 2 | . . 2 Successful 2 | . . 2 Failed . | . . . Catastrophic . | . . . Database Lockouts . | . . . Manual . | . . . Terminals 2 | . . 2 Fabricators . | . . . Repair Stations . | . . . Recycling Units . | . . . Scanalyzers . | . . . Garrison Access . | . . . Terminal Hacks 2 | . . 2 Record 2 | . . 2 Fabricator Hacks . | . . . Repair Station Hacks . | . . . Recycling Unit Hacks . | . . . Scanalyzer . | . . . Garrison Access Hacks . | . . . Unauthorized Hacks . | . . . Terminals . | . . . Fabricators . | . . . Repair Stations . | . . . Recycling Units . | . . . Scanalyzers . | . . . Garrison Access . | . . . Data Cores Recovered . | . . . Used . | . . . Hacking Detections 1 | . . 1 Full Trace Events . | . . . Feedback Events . | . . . Feedback Blocked . | . . . Robot Schematics Acquired . | . . . Robots Built . | . . . Authchips . | . . . Time . | . . . Total Robot Build Rating . | . . . Part Schematics Acquired . | . . . Parts Built . | . . . Authchips . | . . . Time . | . . . Total Part Build Rating . | . . . Parts Repaired . | . . . Time . | . . . Parts Recycled . | . . . Recycled Matter . | . . . Retrieved Matter . | . . . Retrieved Components . | . . . Parts Scanalyzed . | . . . Part Schematics Acquired . | . . . Parts Damaged . | . . . Bothacking | -11 -10 -9 ------------ Run | Yrd Mat Mat Used RIF Installer . | . . . Robots Hacked . | . . . Non-combat . | . . . Combat . | . . . Robot Hacks Applied . | . . . Relay Couplers Released . | . . . Fabnet Peak Effective % . | . . . Robots Rewired . | . . . Allies Hacked . | . . . Hacks Repelled . | . . . Allies | -11 -10 -9 -------- Run | Yrd Mat Mat Total Allies . | . . . Largest Group . | . . . Highest-Rated Group . | . . . Highest-Rated Ally . | . . . Total Orders . | . . . Ally Attacks . | . . . Total Damage . | . . . Kills . | . . . Allies Corrupted . | . . . Allies Melted . | . . . Intel | -11 -10 -9 ------- Run | Yrd Mat Mat Robot Analysis Total . | . . . Derelict Logs Recovered . | . . . Drone Launches . | . . . Drone Recoveries . | . . . Exploration | -11 -10 -9 ------------- Run | Yrd Mat Mat Turns Passed 778 | 70 312 396 Spaces Moved 349 | 62 141 146 Core 37 | 21 . 16 Treads . | . . . Legs 221 | . 91 130 Wheels 91 | 41 50 . Hover . | . . . Flight . | . . . Fastest Speed 50 | 50 80 190 Average Speed 155 | 69 125 220 Slowest Speed 650 | 80 190 650 Overloaded Moves . | . . . Propulsion Burnouts . | . . . Robots Hopped . | . . . Cave-ins Triggered . | . . . Exploration Rate (%) 12 | 6 23 9 Regions Visited 2 Branch Regions . Pre-discovered Areas . | . . . Known Exits Taken . | . . . Unknown Exits Taken 2 | 1 1 . Scrap Searched . | . . . Spaces Dug . | . . . Terrain Destroyed . | . . . Melee . | . . . Projectile . | . . . AOE . | . . . Terrain Rammed . | . . . Walls Destroyed . | . . . Machines Disabled . | . . . Actions | -11 -10 -9 --------- Run | Yrd Mat Mat Total 494 | 81 227 186 Wait 17 | . 15 2 Move 347 | 61 140 146 Hop . | . . . Pick Up 28 | 7 18 3 Fast Attach . | . . . Attach 17 | 7 8 2 Detach . | . . . Swap 6 | . 5 1 Drop 15 | 2 11 2 Fire 62 | 4 28 30 Melee . | . . . Ram . | . . . Kick 2 | . 2 . Crush . | . . . Escape Stasis . | . . . Rewire . | . . . Trap . | . . . Miscellaneous . | . . . Route ------- -11/Scrapyard -10/Materials (discovered 2 exits: *Mat / [*Min]) -9/Materials History --------- Turn | Location | Event 2 | -11/Scrapyard | Met Revision 17 46 | -11/Scrapyard | Discovered new exit (range 8) 71 | -11/Scrapyard | Entered Materials 280 | -10/Materials | Discovered new exit (range 11) 368 | -10/Materials | Discovered new exit (range 3) 383 | -10/Materials | Entered another Materials area 383 | -9/Materials | Evolved 2 slots: Utility x1, Weapon x1 589 | -9/Materials | Build established: Mutant 734 | -9/Materials | Core integrity fell below 50% 737 | -9/Materials | Lost 6 parts (1p2n1u2w) 770 | -9/Materials | Core integrity fell below 20% 779 | -9/Materials | Destroyed by G-47 Trooper with Particle Gun Last Messages --------------- dealt with, suggesting they are originating from deeper in the [Caves], which extend furthest at those depths. 00552_ Critical hit (Burn: +37). 00561_ Y-45 Defender destroyed. 00598_ Acquired 50 matter. 00607_ R-06 Scavenger collects Lgt. Armor Plating. 00638_ Knocked back. 00646_ B-36 Bruiser destroyed. 00655_ Aluminum Leg destroyed. 00661_ Autogun destroyed. 00667_ R-06 Scavenger collects Lgt. Armor Plating. 00667_ R-06 Scavenger suffers critical hit (Burn). 00667_ Med. Armor Plating destroyed. 00675_ Y-45 Defender destroyed. 00676_ R-06 Scavenger collects Imp. Ion Engine. 00697_ Autogun destroyed. 00700_ Critical hit (Burn: +37). 00706_ Nuclear Core destroyed. 00730_ G-34 Mercenary destroyed. 00765_ Acquired Aluminum Leg. Map ----- +----------------------------------------------------+ | ??????????????????????????????? | | ??????????????????????????????? | | ??????????????????????????????? | | ??????????????????????????????? | | ??????????????????????????????? | | ??????????????????????????????? | | ??????????????????????????????? | | ??????????????????????????????? | | ??????????????????????????????? | | ??????????????????????????????? | | ??????????????????????????????? | | ??????????????????????????????? | | ??????????????????????????????? | | ??????????????????????????????? | | ????????? ????????????????????? | | ????????? ????????????????????? | | ????????? ??????"""???????????? | | ????????? ??????"""???????????? | | ????????? ?????? ????????????? | | ????????? ?????? ????????????? | | ????????? ?????? ????????????? | | ????????# #???##/###??????????? | | ######### #???# ???????????? | | # "" # #???# #???????????? | | # ""S # #???# #???????????? | | # "" @ + #???# #???????????? | | # g# #??## ##??????????? | | # ! # #### #??????????? | | # # #??????????? | | # g/ #??????????? | | # """ # #??????????? | | # """ ### ## #??????????? | | # """ #?# ### % ##??????????? | | # #?# #?# #???????????? | | #### ######/### % #???????????? | | ???### # #???????????? | | ?????# # #???????????? | | ?????# =%# #???????????? | | ?????# " #???????????? | | ?????# # #???????????? | | ?????# # #???????????? | | ?????# # #???????????? | | ?????# # #???????????? | | ?????# # #???????????? | | ?????########## #???????????? | | ?????# # #???????????? | | ?????# "T" # #???????????? | | ?????# # #???????????? | | ?????# # #???????????? | | ?????# + #???????????? | +----------------------------------------------------+ Best States ------------- Heat Dissipation 35 Energy Generation 14 Energy Capacity 250 Matter Stores 300 Matter Capacity 300 Sight Range 16 Terrain Scan Density 10 Armor Coverage 450 Evasion (%) 50 Item Schematics ----------------- None Robot Schematics ------------------ None Fabricated ------------ Nothing Alien Tech Used ----------------- None Achievements -------------- None Challenges ------------ None Game ------ Seed BiomechanicalGunTorch Manual? 0 Play Time 00:17:11 Cumulative 1.5 hours Start 2024.04.07 @ 17:54:00 End 2024.04.07 @ 18:40:04 Sessions 5 Manual Loads 0 Difficulty Rogue Special Mode None Game No. 2 Rogue 2 Adventurer 0 Explorer 0 Win Type - Total 0 Types 0/0/0/0/0/0/0/0/0 Lore% 3 Gallery% 6 Achievement% 7 Wizard Run 0 Options --------- Layout 2 ASCII 0 Keyboard 0 Movement Numpad Keybinds 0 Fullscreen 1 Font 24/Terminus Map View 76x44 Zoom Use 21% Tactical HUD 1 Map Filters NONE Filters NONE Steam 1 RUN: 6dac1f57-6bd8-4254-9d71-04047b0a63ae